bitfinex/quotes_BTCUSD_20220306
["timestamp","ask_amount","ask_price","bid_price","bid_amount"]
[1646556022847,0.00127631,39229.0,39226.0,1.52528494]
[1646556023046,0.00022211,39228.0,39227.0,0.88833]
[1646556023247,0.00022211,39228.0,39227.0,1.08367668]
[1646556023445,0.00022211,39228.0,39227.0,1.13457668]
[1646556023647,0.00022211,39228.0,39227.0,0.93948494]
[1646556023854,0.00127631,39229.0,39227.0,1.13457668]
[1646556024049,0.00127631,39229.0,39228.0,1.61473999]
[1646556024248,0.00149842,39229.0,39228.0,1.82836999]
[1646556024447,0.00149842,39229.0,39228.0,2.02345425]
[1646556025047,0.00127631,39229.0,39228.0,2.02345425]
[1646556026887,0.00127631,39229.0,39228.0,2.01072425]
[1646556027487,0.00022178,39230.0,39228.0,2.01072425]
[1646556027688,0.32875986,39239.0,39230.0,0.7756]
[1646556027891,0.15273764,39241.0,39234.0,0.02549395]
[1646556028088,0.32875986,39239.0,39238.0,0.02549395]
[1646556028288,0.32875986,39239.0,39238.0,0.07639395]
[1646556028492,0.32867054,39239.0,39238.0,0.07638647]
[1646556029094,0.32867054,39239.0,39231.0,0.05]
[1646556029095,0.32867054,39239.0,39233.0,0.0509]
[1646556030444,0.0002218,39238.0,39233.0,0.0509]
[1646556031245,0.32867054,39239.0,39233.0,0.0509]
[1646556031443,0.0002218,39237.0,39233.0,0.0509]
[1646556032044,0.32898166,39237.0,39233.0,0.0509]
[1646556032243,0.35436166,39237.0,39228.0,0.0509]
[1646556032447,0.35413986,39237.0,39225.0,0.26851166]
[1646556032644,0.35436165,39237.0,39226.0,0.0509]
[1646556032845,0.32898165,39237.0,39232.0,0.003]
[1646556033501,0.32875986,39237.0,39232.0,0.003]
[1646556033799,0.0002218,39236.0,39232.0,0.003]
[1646556034003,0.0002218,39236.0,39232.0,0.0509]
[1646556034798,0.32875986,39237.0,39232.0,0.0509]
[1646556034998,0.0002218,39236.0,39232.0,0.0509]
[1646556036001,0.32875986,39237.0,39232.0,0.0509]
[1646556036201,0.0002218,39236.0,39232.0,0.0509]
[1646556037247,0.32875986,39237.0,39232.0,0.0509]
[1646556037447,0.1018,39230.0,39227.0,0.01273]
[1646556037646,0.1018,39230.0,39228.0,0.0509]
[1646556042699,0.00216635,39229.0,39228.0,0.0509]
[1646556046945,0.00321098,39229.0,39228.0,0.0509]
[1646556052446,0.00321098,39229.0,39223.0,0.01273]
[1646556052447,0.33083888,39229.0,39223.0,0.01273]
[1646556052645,0.33083888,39229.0,39221.0,0.23298414]
[1646556052646,0.15,39227.0,39221.0,0.19509174]
[1646556052845,0.15,39227.0,39217.0,0.72296205]
[1646556052847,0.3276279,39226.0,39224.0,0.004]
[1646556053743,1.07538,39225.0,39215.0,0.24180799]
[1646556053943,0.3530079,39224.0,39215.0,0.02345372]
[1646556054146,0.02538,39224.0,39211.0,0.23414]
[1646556054343,0.02538,39224.0,39211.0,0.33414]
[1646556054644,0.17538,39224.0,39211.0,0.1714]
[1646556054845,0.20246072,39216.0,39212.0,0.01273]
[1646556055243,0.20246072,39216.0,39209.0,0.22009174]
[1646556055494,0.3261325,39215.0,39209.0,0.00010742]
[1646556056294,0.3261325,39215.0,39207.0,0.16016576]
[1646556056692,0.3261325,39215.0,39209.0,0.00010742]
[1646556057496,0.3261325,39215.0,39207.0,0.16016576]
[1646556057699,0.3261325,39215.0,39209.0,0.00022954]
[1646556058798,0.3261325,39215.0,39207.0,0.16016576]
[1646556058999,0.3261325,39215.0,39209.0,0.00022954]
[1646556059242,0.20246072,39216.0,39209.0,0.00022954]
[1646556059443,0.3261325,39215.0,39209.0,0.00022954]
[1646556059846,0.20246072,39216.0,39209.0,0.00022954]
[1646556060046,0.20246072,39216.0,39207.0,0.16016576]
[1646556060047,0.3261325,39215.0,39207.0,0.16016576]
[1646556060249,0.3261325,39215.0,39209.0,0.00022954]
[1646556060951,0.15,39214.0,39209.0,0.00022954]
[1646556061150,0.3261325,39215.0,39205.0,0.004]
[1646556061151,0.15,39210.0,39205.0,0.004]
[1646556061346,0.381801,39212.0,39205.0,0.004]
[1646556061347,0.3261325,39209.0,39205.0,0.004]
[1646556061548,0.15,39209.0,39205.0,0.004]
[1646556061748,0.15,39209.0,39200.0,0.03805187]
[1646556061749,0.3261325,39208.0,39200.0,0.21794419]
[1646556062148,0.18248975,39203.0,39200.0,0.21794419]
[1646556062348,0.3261325,39208.0,39200.0,0.21794419]
[1646556063300,0.15238749,39203.0,39200.0,0.21794419]
[1646556064603,0.3261325,39208.0,39200.0,0.21794419]
[1646556064802,0.00114524,39214.0,39200.0,0.21794419]
[1646556065004,0.00114524,39214.0,39202.0,0.7756]
[1646556065211,0.00114524,39214.0,39203.0,0.0509]
[1646556065407,0.00114524,39214.0,39202.0,0.1733]
[1646556065602,0.00114524,39214.0,39208.0,0.15415475]
[1646556066203,0.00023677,39213.0,39208.0,0.15415475]
[1646556066604,0.00023677,39213.0,39209.0,0.0509]
[1646556067246,0.00114524,39214.0,39209.0,0.0509]
[1646556067444,0.00023677,39213.0,39209.0,0.0509]
[1646556067644,0.00023677,39213.0,39212.0,0.08669931]
[1646556067843,0.00023677,39213.0,39212.0,0.13759931]
[1646556068345,0.2141633,39220.0,39212.0,0.13759931]
[1646556068544,0.2141633,39220.0,39216.0,0.02550858]
[1646556068746,0.2141633,39220.0,39219.0,0.02550858]
[1646556068946,0.2141633,39220.0,39209.0,0.51283835]
[1646556068947,0.00011715,39216.0,39209.0,0.51283835]
[1646556069146,0.00011715,39216.0,39213.0,0.02550858]
[1646556069343,0.00011715,39216.0,39215.0,0.02550858]
[1646556069543,0.00011715,39216.0,39215.0,0.07640858]
[1646556076647,0.00011715,39216.0,39215.0,0.0509]
[1646556077849,0.00433873,39216.0,39215.0,0.0509]
[1646556082054,0.00433873,39216.0,39215.0,0.07640858]
[1646556083653,0.00433873,39216.0,39215.0,0.0509]
[1646556083852,0.00433873,39216.0,39215.0,0.07640858]
[1646556087495,0.00433873,39216.0,39215.0,0.13759931]
[1646556090743,0.00433873,39216.0,39215.0,0.13758273]
[1646556090944,0.00433873,39216.0,39215.0,0.13758052]
[1646556091443,0.00423517,39216.0,39215.0,0.13758052]
[1646556095195,0.00423517,39216.0,39215.0,0.13760041]
[1646556097047,0.00423517,39216.0,39215.0,0.0509]
[1646556097448,0.00423517,39216.0,39215.0,0.77338162]
[1646556097648,0.00423517,39216.0,39215.0,0.77338052]
[1646556098048,0.00423517,39216.0,39215.0,0.92338052]
[1646556098249,0.00423517,39216.0,39215.0,1.69898052]
[1646556098450,0.00423517,39216.0,39215.0,1.69898273]
[1646556098649,0.00423517,39216.0,39215.0,1.65194359]
[1646556098848,0.00423517,39216.0,39215.0,1.91717027]
[1646556099049,0.00423517,39216.0,39215.0,1.88935937]
[1646556099352,0.00423517,39216.0,39215.0,1.91473937]
[1646556099848,0.00423517,39216.0,39215.0,4.47907152]
[1646556100247,0.00423517,39216.0,39215.0,1.91473937]
[1646556101100,0.00423517,39216.0,39215.0,1.91473826]
[1646556102503,0.32310384,39229.0,39217.0,0.7756]
[1646556102701,0.1018,39230.0,39218.0,0.9256]
[1646556102904,0.1018,39230.0,39222.0,0.6358]
[1646556103202,0.32364708,39232.0,39223.0,0.0509]
[1646556103402,0.19206147,39230.0,39224.0,0.0509]
[1646556103603,0.1527,39223.0,39221.0,0.82109294]
[1646556103902,0.1527,39223.0,39222.0,0.13758052]
[1646556105655,0.1527,39223.0,39222.0,0.77338052]
[1646556106558,0.1527,39223.0,39222.0,0.77337941]
[1646556110602,0.1527,39223.0,39222.0,0.6867]
[1646556110802,0.1527,39223.0,39222.0,0.0509]
[1646556111403,0.3153417,39223.0,39222.0,0.0509]
[1646556111604,0.1527,39223.0,39222.0,0.0509]
[1646556111849,0.15525634,39223.0,39222.0,0.0509]
[1646556112645,0.15325549,39223.0,39222.0,0.0509]
[1646556117298,0.15445546,39223.0,39222.0,0.0509]
[1646556117899,0.16375202,39222.0,39216.0,0.18193]
[1646556118099,0.16375202,39222.0,39217.0,0.06364]
[1646556118298,0.15445546,39223.0,39217.0,0.06364]
[1646556118697,0.15445546,39223.0,39217.0,0.0509]
[1646556119099,0.00022157,39222.0,39217.0,0.0509]
[1646556119946,0.15445546,39223.0,39217.0,0.0509]
[1646556120346,0.00022157,39221.0,39217.0,0.0509]
[1646556121246,0.15445546,39223.0,39217.0,0.0509]
[1646556121446,0.18984553,39219.0,39217.0,0.0509]
[1646556121646,0.18984553,39219.0,39218.0,0.11051907]
[1646556121847,0.00022157,39221.0,39218.0,0.16141907]
[1646556122046,0.00022157,39221.0,39218.0,0.0509]
[1646556122247,0.0015863,39221.0,39218.0,0.0509]
[1646556122447,0.00136473,39221.0,39218.0,0.0509]
[1646556122652,0.0015863,39221.0,39218.0,0.0509]
[1646556122847,0.17122896,39220.0,39218.0,0.0509]
[1646556123100,0.0015863,39221.0,39219.0,0.11052471]
[1646556123297,0.0015863,39221.0,39220.0,0.0509]
[1646556123699,0.00136473,39221.0,39220.0,0.0509]
[1646556126101,0.00136473,39221.0,39220.0,0.13758273]
[1646556126304,0.00136473,39221.0,39220.0,0.13758052]
[1646556126510,0.00136473,39221.0,39220.0,0.13757941]
[1646556126750,0.00136473,39221.0,39220.0,1.87074297]
[1646556126956,0.00136473,39221.0,39220.0,1.94855498]
[1646556127151,0.00136473,39221.0,39220.0,2.06128498]
[1646556127350,0.00136473,39221.0,39220.0,1.94679356]
[1646556127550,0.00136473,39221.0,39220.0,2.22010954]
[1646556128152,0.00136473,39221.0,39220.0,1.89834598]
[1646556128751,0.00136473,39221.0,39220.0,1.93627001]
[1646556129151,0.00136473,39221.0,39220.0,2.93627001]
[1646556129356,0.00136473,39221.0,39220.0,2.16067001]
[1646556130157,0.00136473,39221.0,39220.0,2.14794001]
[1646556130355,0.00136473,39221.0,39220.0,1.96130344]
[1646556130801,0.00136473,39221.0,39220.0,1.37337941]
[1646556130998,0.00136473,39221.0,39220.0,1.27337941]
[1646556131797,0.00136473,39221.0,39220.0,0.77337941]
[1646556131997,0.00136473,39221.0,39220.0,0.96849046]
[1646556132198,0.00136473,39221.0,39220.0,0.77337941]
[1646556133598,0.00136473,39221.0,39220.0,0.8112193]
[1646556137349,0.00136473,39221.0,39220.0,0.68759229]
[1646556137750,0.00136473,39221.0,39220.0,0.05179229]
[1646556138407,0.00136473,39221.0,39220.0,0.00089229]
[1646556138603,0.15195612,39223.0,39220.0,0.00089229]
[1646556138604,0.14485512,39223.0,39220.0,0.00089229]
[1646556138802,0.14485512,39223.0,39222.0,0.00089238]
[1646556139004,0.14485512,39223.0,39218.0,0.1509]
[1646556139005,0.00178476,39221.0,39218.0,0.1509]
[1646556139203,0.00178476,39221.0,39220.0,0.00089238]
[1646556139402,0.00178476,39221.0,39220.0,0.00081604]
[1646556139802,0.00178476,39221.0,39220.0,0.05171604]
[1646556142451,0.00434087,39221.0,39220.0,0.05171604]
[1646556142850,0.00434087,39221.0,39220.0,0.08929969]
[1646556145698,0.00434087,39221.0,39220.0,0.18929969]
[1646556146105,0.00434087,39221.0,39220.0,1.60069969]
[1646556146502,0.00434087,39221.0,39220.0,1.79581074]
[1646556148403,0.00434087,39221.0,39220.0,2.29581074]
[1646556149451,0.00434087,39221.0,39220.0,1.52021074]
[1646556150452,0.00434087,39221.0,39220.0,2.29581074]
[1646556150654,0.00434087,39221.0,39220.0,1.52021074]
[1646556152353,0.00434087,39221.0,39220.0,1.79581074]
[1646556152653,0.00434087,39221.0,39220.0,1.02021074]
[1646556153102,0.00434087,39221.0,39220.0,0.82509969]
[1646556153304,0.00434087,39221.0,39220.0,1.02021074]
[1646556153504,0.00434087,39221.0,39220.0,0.82509969]
[1646556153706,0.00434087,39221.0,39220.0,1.02021074]
[1646556154008,0.00434087,39221.0,39220.0,0.82509969]
[1646556154207,0.00434087,39221.0,39220.0,1.02021074]
[1646556154407,0.00434087,39221.0,39220.0,0.82509969]
[1646556154609,0.00434087,39221.0,39220.0,1.79581074]
[1646556154808,0.00434087,39221.0,39220.0,1.60069969]
[1646556155208,0.00434087,39221.0,39220.0,1.79581074]
[1646556155607,0.00434087,39221.0,39220.0,2.29581074]
[1646556156207,0.00434087,39221.0,39220.0,1.52021074]
[1646556159950,0.00434087,39221.0,39220.0,1.02021074]
[1646556160150,0.00434087,39221.0,39220.0,0.82509969]
[1646556160807,0.00434087,39221.0,39220.0,1.02021074]
[1646556161610,0.00434087,39221.0,39220.0,1.52021074]
[1646556164109,0.00422415,39221.0,39220.0,1.52021074]
[1646556168099,0.00422415,39221.0,39220.0,1.02021074]
[1646556168499,0.00422415,39221.0,39220.0,0.82509969]
[1646556168701,0.00422415,39221.0,39220.0,1.52021074]
[1646556168898,0.00422415,39221.0,39220.0,1.32509969]
[1646556169300,0.00422415,39221.0,39220.0,1.52021074]
[1646556170301,0.00422415,39221.0,39220.0,1.02021074]
[1646556170700,0.00422415,39221.0,39220.0,0.82509969]
[1646556170899,0.00422415,39221.0,39220.0,1.02021074]
[1646556171099,0.00422415,39221.0,39220.0,0.82509969]
[1646556171301,0.00422415,39221.0,39220.0,1.02021074]
[1646556171501,0.00422415,39221.0,39220.0,0.82509969]
[1646556171753,0.00422415,39221.0,39220.0,1.02021074]
[1646556171952,0.00422415,39221.0,39220.0,0.82509969]
[1646556172156,0.00422415,39221.0,39220.0,1.02021074]
[1646556172353,0.00422415,39221.0,39220.0,0.82509969]
[1646556173954,0.00422415,39221.0,39220.0,0.72509969]
[1646556177305,0.00422415,39221.0,39220.0,0.62689198]
[1646556177900,0.00422415,39221.0,39220.0,0.66584099]
[1646556180848,0.00422415,39221.0,39220.0,1.16584099]
[1646556181248,0.00422415,39221.0,39220.0,1.46095204]
[1646556183503,0.00422415,39221.0,39220.0,2.23655204]
[1646556185504,0.00022155,39224.0,39221.0,1.05]
[1646556185706,0.00022155,39224.0,39223.0,0.77145966]
[1646556186005,0.31845498,39235.0,39223.0,1.01747071]
[1646556186204,0.20704922,39236.0,39229.0,0.6358]
[1646556186406,0.55749557,39228.0,39224.0,0.1]
[1646556186606,0.55749557,39228.0,39227.0,0.08565966]
[1646556186857,0.55749557,39228.0,39227.0,1.54795966]
[1646556187059,0.55749557,39228.0,39227.0,1.59795966]
[1646556187256,0.55749557,39228.0,39227.0,1.845635]
[1646556187456,0.55749557,39228.0,39227.0,1.82014105]
[1646556187457,0.53164211,39228.0,39227.0,1.82014105]
[1646556187659,0.53164211,39228.0,39227.0,2.3456285]
[1646556189256,0.53164211,39228.0,39227.0,1.5700285]
[1646556189657,0.53164211,39228.0,39227.0,1.5572985]
[1646556190160,0.53164211,39228.0,39227.0,1.4072985]
[1646556191304,0.53164211,39228.0,39227.0,0.9072985]
[1646556191706,0.53164211,39228.0,39227.0,0.71218745]
[1646556193008,0.53311156,39228.0,39227.0,0.71323895]
[1646556198205,0.53311156,39228.0,39227.0,0.71218745]
[1646556200814,0.53311156,39228.0,39227.0,0.86218745]
[1646556201511,0.53311156,39228.0,39227.0,1.0572985]
[1646556201758,0.53311156,39228.0,39227.0,0.86218745]
[1646556201960,0.53311156,39228.0,39227.0,1.0572985]
[1646556202157,0.53311156,39228.0,39227.0,0.86218745]
[1646556202358,0.53311156,39228.0,39227.0,1.0572985]
[1646556202561,0.53311156,39228.0,39227.0,0.86218745]
[1646556202757,0.53311156,39228.0,39227.0,1.0572985]
[1646556202958,0.53311156,39228.0,39227.0,0.86218745]
[1646556203161,0.53311156,39228.0,39227.0,1.0572985]
[1646556203358,0.53311156,39228.0,39227.0,0.81218745]
[1646556203558,0.85023612,39228.0,39227.0,0.2714985]
[1646556203760,0.85023612,39228.0,39227.0,0.07638745]
[1646556203958,0.53311156,39228.0,39227.0,0.07638745]
[1646556204160,0.85023612,39228.0,39227.0,0.07638745]
[1646556204358,0.53311156,39228.0,39227.0,0.07638745]
[1646556210557,0.53303959,39228.0,39227.0,0.07638745]
[1646556222911,0.53303959,39228.0,39227.0,0.08014511]
[1646556228207,0.53303959,39228.0,39227.0,0.07744106]
[1646556232861,0.53303959,39228.0,39227.0,0.07638745]
[1646556233062,0.53294526,39228.0,39227.0,0.07638745]
[1646556239564,0.15198468,39226.0,39223.0,0.05]
[1646556239764,0.15198468,39226.0,39225.0,0.08721921]
[1646556239961,0.15198468,39226.0,39225.0,0.13811921]
[1646556246960,0.15198468,39226.0,39225.0,0.13655966]
[1646556247163,0.00022116,39227.0,39226.0,0.95]
[1646556247369,0.53294526,39228.0,39226.0,1.50121272]
[1646556247561,0.53294526,39228.0,39227.0,1.03769411]
[1646556247760,0.53294526,39228.0,39227.0,1.32890598]
[1646556247961,0.53147581,39228.0,39227.0,1.32890598]
[1646556248662,0.53147581,39228.0,39227.0,1.30922967]
[1646556249265,0.53147581,39228.0,39227.0,1.80922967]
[1646556251212,0.0002209,39229.0,39227.0,1.85922967]
[1646556251417,0.0002209,39229.0,39228.0,1.95031272]
[1646556251613,0.0002209,39229.0,39228.0,2.83212377]
[1646556251813,0.0002209,39229.0,39228.0,2.93212377]
[1646556252113,0.5053,39239.0,39228.0,2.93212377]
[1646556252314,0.1585,39239.0,39233.0,0.6358]
[1646556252618,0.1585,39239.0,39234.0,0.26405475]
[1646556252815,1.7622853,39240.0,39234.0,0.26405475]
[1646556253216,1.7622853,39240.0,39234.0,0.0509]
[1646556253617,0.00022087,39239.0,39234.0,0.0509]
[1646556254265,0.18348676,39236.0,39234.0,0.25991669]
[1646556254465,0.18348676,39236.0,39235.0,0.08563782]
[1646556254663,0.18348676,39236.0,39235.0,0.13653782]
[1646556255065,0.18348676,39236.0,39235.0,0.0509]
[1646556255268,0.18348676,39236.0,39235.0,0.0508368]
[1646556256666,1.05,39235.0,39232.0,0.00054246]
[1646556256871,0.15,39233.0,39232.0,0.00054246]
[1646556257068,0.46673578,39233.0,39232.0,0.00054246]
[1646556259115,0.02538,39232.0,39220.0,0.43734901]
[1646556259315,0.08744369,39230.0,39220.0,0.43734901]
[1646556259514,0.34211578,39229.0,39220.0,0.43734901]
[1646556259817,0.31673578,39229.0,39220.0,0.43734901]
[1646556260013,0.02538,39231.0,39220.0,0.43734901]
[1646556260215,0.31673578,39232.0,39220.0,0.43734901]
[1646556260615,0.17538,39231.0,39220.0,0.43734901]
[1646556260916,0.00022167,39228.0,39224.0,0.19842482]
[1646556261895,0.31673578,39232.0,39224.0,0.19842482]
[1646556262096,0.00022148,39228.0,39224.0,0.19842482]
[1646556264096,0.31673578,39232.0,39224.0,0.19842482]
[1646556264296,0.00022148,39228.0,39224.0,0.19842482]
[1646556265511,0.00022165,39228.0,39224.0,0.19842482]
[1646556266612,0.15,39231.0,39224.0,0.19842482]
[1646556266613,0.31673578,39230.0,39224.0,0.19842482]
[1646556266815,0.00022165,39228.0,39224.0,0.19842482]
[1646556267815,0.31673578,39230.0,39224.0,0.19842482]
[1646556268014,0.00022165,39228.0,39224.0,0.19842482]
[1646556268413,0.0011841,39227.0,39226.0,0.00073807]
[1646556269464,0.0011841,39227.0,39224.0,0.19320441]
[1646556270460,0.00140575,39227.0,39224.0,0.19320441]
[1646556271460,0.0011841,39227.0,39224.0,0.19320441]
[1646556271660,0.00140575,39227.0,39224.0,0.19320441]
[1646556272460,0.0011841,39227.0,39224.0,0.19320441]
[1646556272861,0.00140572,39227.0,39224.0,0.19320441]
[1646556273526,0.00140572,39227.0,39226.0,0.00270859]
[1646556273722,0.0011841,39227.0,39226.0,0.00270859]
[1646556276778,0.0011841,39227.0,39222.0,0.003]
[1646556276779,0.69972088,39227.0,39222.0,0.003]
[1646556276973,0.15,39223.0,39222.0,0.003]
[1646556277173,0.46673578,39223.0,39219.0,0.06]
[1646556277571,0.15276143,39222.0,39219.0,0.06]
[1646556277773,0.31673578,39221.0,39219.0,0.06]
[1646556278175,0.31673578,39223.0,39219.0,0.06]
[1646556278776,0.17250929,39221.0,39219.0,0.06]
[1646556279374,0.31673578,39220.0,39219.0,0.06]
[1646556280617,0.31673578,39223.0,39219.0,0.06]
[1646556281817,0.00022129,39224.0,39219.0,0.06]
[1646556282014,0.00022129,39224.0,39223.0,0.16400478]
[1646556282214,0.31673578,39225.0,39223.0,0.16400478]
[1646556282415,0.0002213,39224.0,39223.0,0.16400478]
[1646556283416,0.00222305,39227.0,39223.0,0.16400478]
[1646556283616,0.00222305,39227.0,39224.0,0.0509]
[1646556283617,0.00022187,39225.0,39224.0,0.0509]
[1646556284462,0.33358,39235.0,39224.0,0.0509]
[1646556284669,0.678385,39239.0,39233.0,0.19799541]
[1646556284864,0.1,39238.0,39233.0,0.19799541]
[1646556285064,0.31673578,39239.0,39233.0,0.24889541]
[1646556286065,0.00021748,39238.0,39233.0,0.24889541]
[1646556286266,0.00021748,39238.0,39233.0,0.0509]
[1646556286267,0.20538982,39235.0,39233.0,0.0509]
[1646556286469,0.31673578,39234.0,39233.0,0.0509]
[1646556286668,0.69853678,39234.0,39232.0,0.001]
[1646556286867,0.20538982,39235.0,39232.0,0.001]
[1646556286868,0.31673578,39233.0,39232.0,0.001]
[1646556287067,0.02538,39232.0,39221.0,0.1]
[1646556287270,0.02538,39232.0,39222.0,0.19236768]
[1646556287668,0.02538,39232.0,39222.0,0.18736768]
[1646556288310,0.00021512,39229.0,39222.0,0.18736768]
[1646556289112,0.00021512,39229.0,39225.0,0.05]
[1646556289314,0.31673578,39233.0,39225.0,0.05]
[1646556289610,0.00021513,39227.0,39225.0,0.05]
[1646556290712,0.31773578,39233.0,39225.0,0.05]
[1646556290911,0.00021521,39228.0,39225.0,0.05]
[1646556291777,0.001,39231.0,39225.0,0.05]
[1646556291967,0.00020724,39228.0,39225.0,0.05]
[1646556292371,0.381801,39227.0,39225.0,0.05]
[1646556292567,0.69853678,39226.0,39225.0,0.05]
[1646556293266,0.31673578,39226.0,39225.0,0.05]
[1646556293665,0.69853678,39226.0,39225.0,0.05]
[1646556294066,0.31673578,39226.0,39225.0,0.05]
[1646556295510,0.00020803,39227.0,39225.0,0.05]
[1646556295715,0.00020803,39227.0,39221.0,0.17833996]
[1646556295912,0.00020803,39227.0,39226.0,0.05]
[1646556296513,0.31673578,39229.0,39226.0,0.05]
[1646556296712,0.00020803,39228.0,39226.0,0.05]
[1646556296914,0.00020803,39228.0,39227.0,0.2167414]
[1646556297111,0.00020803,39228.0,39227.0,0.2067414]
[1646556297711,0.31673578,39231.0,39227.0,0.2067414]
[1646556298114,0.00020799,39229.0,39227.0,0.2067414]
[1646556298314,0.00020799,39229.0,39226.0,0.05]
[1646556298612,0.381801,39228.0,39226.0,0.05]
[1646556299014,0.69853678,39227.0,39226.0,0.05]
[1646556299262,0.31775188,39227.0,39226.0,0.05]
[1646556299463,0.3828171,39227.0,39221.0,0.09505146]
[1646556299659,0.31673578,39226.0,39221.0,0.09505146]
[1646556300265,0.31673578,39226.0,39219.0,0.06]
[1646556300460,0.00020795,39225.0,39219.0,0.06]
[1646556301062,0.21375431,39221.0,39219.0,0.06]
[1646556301264,0.00020795,39225.0,39219.0,0.06]
[1646556301465,0.31673578,39226.0,39219.0,0.06]
[1646556301662,0.00020794,39224.0,39219.0,0.06]
[1646556302761,0.00020795,39224.0,39219.0,0.06]
[1646556304113,0.31528343,39224.0,39219.0,0.06]
[1646556304913,0.31507548,39224.0,39219.0,0.06]
[1646556305314,0.31528343,39224.0,39219.0,0.06]
[1646556306116,0.00101654,39225.0,39219.0,0.06]
[1646556306514,0.00020795,39224.0,39219.0,0.1109]
[1646556306962,0.00020795,39224.0,39223.0,0.19050153]
[1646556307365,0.00101654,39225.0,39223.0,0.19050153]
[1646556307865,0.00122449,39225.0,39219.0,0.1129]
[1646556308664,0.00122449,39225.0,39219.0,0.31942485]
[1646556308665,0.00101654,39225.0,39219.0,0.31942485]
[1646556309063,0.20920025,39222.0,39219.0,0.31942485]
[1646556309263,0.4184005,39222.0,39219.0,0.31942485]
[1646556309870,0.4184005,39222.0,39219.0,0.31742485]
[1646556314117,0.20920025,39222.0,39219.0,0.31742485]
[1646556314360,0.20920025,39220.0,39219.0,0.31742485]
[1646556314560,0.4184005,39220.0,39219.0,0.31742485]
[1646556315363,0.4184005,39220.0,39219.0,0.1109]
[1646556315762,0.4184005,39220.0,39219.0,0.06]
[1646556319117,0.42034559,39220.0,39219.0,0.06]
[1646556320118,0.42026594,39220.0,39219.0,0.06]
[1646556324679,0.42026594,39220.0,39219.0,0.1109]
[1646556327917,0.42026594,39220.0,39219.0,0.06]
[1646556330584,0.4184005,39220.0,39219.0,0.06]
[1646556330789,0.11999999,39218.0,39216.0,0.18325443]
[1646556332784,0.53840049,39218.0,39216.0,0.18325443]
[1646556333013,0.53840049,39218.0,39214.0,0.0509]
[1646556337671,0.32920024,39218.0,39214.0,0.0509]
[1646556337871,0.11999999,39218.0,39214.0,0.0509]
[1646556338071,0.4184005,39216.0,39214.0,0.0509]
[1646556338874,0.4184005,39216.0,39215.0,0.08567495]
[1646556339072,0.4184005,39216.0,39215.0,0.06364925]
[1646556339675,0.25881153,39230.0,39215.0,0.06364925]
[1646556339676,0.20704922,39228.0,39217.0,1.05]
[1646556339881,0.20704922,39232.0,39224.0,0.6358]
[1646556340076,0.20704922,39233.0,39224.0,0.6358]
[1646556340278,0.20704922,39233.0,39225.0,0.0509]
[1646556340720,0.20704922,39233.0,39225.0,0.20791531]
[1646556341022,0.4069821,39234.0,39225.0,0.21077631]
[1646556341430,0.00023017,39231.0,39225.0,0.21077631]
[1646556342221,0.20704922,39234.0,39225.0,0.21077631]
[1646556342423,0.20704922,39234.0,39225.0,0.52243713]
[1646556342623,0.00023017,39230.0,39225.0,0.21077631]
[1646556343423,0.20704922,39234.0,39225.0,0.21077631]
[1646556343626,0.00023018,39229.0,39225.0,0.21077631]
[1646556344663,0.20704922,39234.0,39225.0,0.21077631]
[1646556344863,0.00022129,39229.0,39225.0,0.21077631]
[1646556345064,0.00022129,39229.0,39225.0,0.62243713]
[1646556345468,0.00022129,39229.0,39225.0,0.81753776]
[1646556345964,0.1527,39235.0,39225.0,0.81753776]
[1646556346169,0.00022129,39229.0,39225.0,0.81753776]
[1646556347165,0.20704922,39237.0,39225.0,0.81753776]
[1646556347366,0.00022129,39229.0,39225.0,0.84291776]
[1646556347565,0.00022129,39229.0,39228.0,0.08565201]
[1646556347765,0.00022129,39229.0,39228.0,0.13655201]
[1646556348211,0.20704922,39237.0,39228.0,0.13655201]
[1646556348413,0.20704922,39237.0,39228.0,0.0509]
[1646556348614,0.00022204,39230.0,39228.0,0.0509]
[1646556349013,0.00022204,39230.0,39229.0,0.08565201]
[1646556349212,0.00022204,39230.0,39229.0,0.13655201]
[1646556349412,0.20704922,39237.0,39229.0,0.13655201]
[1646556349612,0.00022204,39231.0,39229.0,0.0509]
[1646556350711,0.20704922,39237.0,39229.0,0.0509]
[1646556350913,0.00022204,39232.0,39229.0,0.0509]
[1646556351870,0.20704922,39236.0,39229.0,0.0509]
[1646556352071,0.00022207,39232.0,39229.0,0.0509]
[1646556353172,0.20704922,39236.0,39229.0,0.0509]
[1646556353376,0.00022207,39232.0,39229.0,0.0509]
[1646556354273,0.20807564,39236.0,39229.0,0.0509]
[1646556354474,0.00022207,39232.0,39229.0,0.0509]
[1646556355514,0.00102642,39236.0,39229.0,0.0509]
[1646556355818,0.00022237,39232.0,39229.0,0.0509]
[1646556356718,0.00102642,39236.0,39229.0,0.0509]
[1646556356914,0.00022237,39232.0,39229.0,0.0509]
[1646556357916,0.00102642,39236.0,39229.0,0.0509]
[1646556358118,0.00022237,39232.0,39229.0,0.0509]
[1646556358516,0.00022237,39232.0,39229.0,0.25053121]
[1646556358717,0.00102217,39231.0,39229.0,0.25053121]
[1646556360866,0.00102217,39231.0,39225.0,0.002861]
[1646556360867,0.50464814,39226.0,39225.0,0.002861]
[1646556361065,0.50464814,39226.0,39225.0,0.08851301]
[1646556361870,0.50464814,39226.0,39225.0,0.13941301]
[1646556366872,0.50464814,39226.0,39225.0,0.053761]
[1646556367272,0.50464814,39226.0,39225.0,0.09883085]
[1646556369276,0.50565891,39226.0,39225.0,0.09883085]
[1646556369681,0.50565891,39226.0,39225.0,0.13941301]
[1646556370514,0.50565891,39226.0,39225.0,0.1394141]
[1646556371512,0.00022234,39227.0,39226.0,1.07538]
[1646556371513,2.34e-06,39227.0,39226.0,1.07538]
[1646556371723,0.16977946,39247.0,39226.0,4.0112834]
[1646556371724,0.20704922,39244.0,39226.0,4.0112834]
[1646556371913,0.20704922,39250.0,39235.0,0.26105573]
[1646556372114,1.72431264,39240.0,39239.0,0.6612816]
[1646556372315,1.72431264,39240.0,39239.0,0.7121816]
[1646556372512,1.17464946,39240.0,39239.0,0.86720424]
[1646556372713,1.17464946,39240.0,39239.0,1.01720424]
[1646556372909,1.17464946,39240.0,39239.0,1.2123045]
[1646556373311,1.17464946,39240.0,39239.0,1.25102058]
[1646556374012,1.17464946,39240.0,39239.0,1.5666647]
[1646556374264,1.17464946,39240.0,39239.0,1.25102058]
[1646556374464,1.17464946,39240.0,39239.0,1.5666647]
[1646556374870,1.17464946,39240.0,39239.0,1.25102058]
[1646556375066,1.17464946,39240.0,39239.0,1.27640058]
[1646556375266,1.17464946,39240.0,39239.0,2.20200058]
[1646556375466,1.16024502,39240.0,39239.0,2.20200058]